fUST/lending_fUST_20250628
["ID","MTS","AMOUNT","RATE_DAILY","PERIOD"]
[368173354,1751049048085,-877.07,0.00019726,2]
[368173355,1751049048095,-3829.26,0.00019726,2]
[368173356,1751049048105,-460.0,0.00019726,2]
[368173357,1751049048114,-460.0,0.00019726,2]
[368173358,1751049048124,-6238.11,0.00019726,2]
[368173359,1751049048134,-460.0,0.00019726,2]
[368173360,1751049048144,-409.9871153,0.00019726,2]
[368173361,1751049048153,-460.0,0.00019726,2]
[368173362,1751049048163,-460.0,0.00019726,2]
[368173363,1751049048172,-460.0,0.00019726,2]
[368173364,1751049048181,-502.74,0.00019726,2]
[368173365,1751049048191,-1658.01,0.00019726,2]
[368173366,1751049048201,-151.0,0.00019726,2]
[368173367,1751049048211,-460.0,0.00019726,2]
[368173368,1751049048220,-151.0,0.00019726,2]
[368173369,1751049048230,-858.85,0.00019726,2]
[368173370,1751049048239,-460.0,0.00019726,2]
[368173371,1751049048249,-400.21602134,0.00019726,2]
[368173372,1751049048258,-534.66,0.00019726,2]
[368173373,1751049048268,-460.0,0.00019726,2]
[368173374,1751049048277,-460.0,0.00019726,2]
[368173375,1751049048287,-873.1,0.00019726,2]
[368173376,1751049048297,-460.0,0.00019726,2]
[368173377,1751049048306,-460.0,0.00019726,2]
[368173378,1751049048317,-1065.72,0.00019726,2]
[368173379,1751049048326,-460.0,0.00019726,2]
[368173380,1751049048336,-460.0,0.00019726,2]
[368173381,1751049048346,-4635.38,0.00019726,2]
[368173382,1751049048356,-266.03177238,0.00019726,2]
[368173383,1751049048366,-707.85,0.00019726,2]
[368173384,1751049048375,-822.12,0.00019726,2]
[368173385,1751049048385,-3704.5,0.00019726,2]
[368173386,1751049048394,-1201.37,0.00019726,2]
[368173387,1751049048404,-722.87,0.00019726,2]
[368173388,1751049048414,-460.0,0.00019726,2]
[368173389,1751049048423,-1142.58,0.00019726,2]
[368173390,1751049048433,-499.48,0.00019726,2]
[368173391,1751049048442,-151.0,0.00019726,2]
[368173392,1751049048452,-460.0,0.00019726,2]
[368173393,1751049048461,-151.0,0.00019726,2]
[368173394,1751049048471,-731.11,0.00019726,2]
[368173395,1751049048480,-3866.0,0.00019726,2]
[368173396,1751049048490,-460.0,0.00019726,2]
[368173397,1751049048500,-833.403518,0.00019726,2]
[368173398,1751049048510,-1339.53,0.00019726,2]
[368173399,1751049048520,-833.403518,0.00019726,2]
[368173400,1751049048529,-151.0,0.00019726,2]
[368173401,1751049048539,-500.0,0.00019738,2]
[368173402,1751049048548,-500.0,0.00019738,2]
[368173403,1751049048557,-1276.95252504,0.00019739,2]
[368173404,1751049048571,-151.0,0.00019754,2]
[368173405,1751049048583,-151.0,0.00019781,2]
[368173406,1751049048593,-2498.52954587,0.00019792,2]
[368173407,1751049048602,-500.0,0.00019792,2]
[368173408,1751049048613,-221.08082616,0.00019809,2]
[368173409,1751049048623,-500.0,0.00019817,2]
[368173410,1751049048633,-500.0,0.00019817,2]
[368173411,1751049048643,-151.0,0.000199,2]
[368173412,1751049048654,-306.0,0.000199,2]
[368173413,1751049048664,-160.0,0.00019972,2]
[368173414,1751049048674,-160.0,0.00019972,2]
[368173415,1751049048684,-214.91804724,0.00019972,2]
[368173416,1751049048694,-160.0,0.00019972,2]
[368173417,1751049048704,-160.0,0.00019972,2]
[368173418,1751049048714,-12562.41216491,0.00019972,2]
[368173419,1751049048725,-230.26210603,0.00019972,2]
[368173420,1751049048735,-160.0,0.00019972,2]
[368173421,1751049048746,-213.75309343,0.00019972,2]
[368173422,1751049048756,-836.98798914,0.00019972,2]
[368173423,1751049048766,-7136.4157538,0.0001999,2]
[368173424,1751049048777,-151.0,0.0001999,2]
[368173425,1751049048787,-151.0,0.0001999,2]
[368173426,1751049048796,-151.0,0.0001999,2]
[368173427,1751049048806,-151.0,0.0001999,2]
[368173428,1751049048816,-576.205166,0.0001999,2]
[368173429,1751049048828,-576.205166,0.0001999,2]
[368173430,1751049048838,-251.347677,0.0001999,2]
[368173431,1751049048848,-251.347677,0.0001999,2]
[368173432,1751049048858,-847.04181546,0.0001999,2]
[368173433,1751049048867,-160.0,0.0001999,2]
[368173434,1751049048876,-160.0,0.0001999,2]
[368173435,1751049048886,-160.0,0.0001999,2]
[368173436,1751049048895,-160.0,0.00019992,2]
[368173437,1751049048904,-460.0,0.0002,2]
[368173438,1751049048914,-460.0,0.0002,2]
[368173439,1751049048923,-460.0,0.0002,2]
[368173440,1751049048932,-460.0,0.0002,2]
[368173441,1751049048942,-460.0,0.0002,2]
[368173442,1751049048951,-460.0,0.0002,2]
[368173443,1751049048961,-460.0,0.0002,2]
[368173444,1751049048970,-460.0,0.0002,2]
[368173445,1751049048979,-153.0,0.0002,2]
[368173446,1751049048988,-460.0,0.0002,2]
[368173447,1751049048998,-460.0,0.0002,2]
[368173448,1751049049009,-153.0,0.0002,2]
[368173449,1751049049018,-460.0,0.0002,2]
[368173450,1751049049028,-153.0,0.0002,2]
[368173451,1751049049038,-460.0,0.0002,2]
[368173452,1751049049047,-151.0,0.0002,2]
[368173453,1751049049057,-573.06,0.0002,2]
[368173454,1751049049067,-460.0,0.0002,2]
[368173455,1751049049078,-460.0,0.0002,2]
[368173456,1751049049088,-469.23145308,0.0002,2]
[368173457,1751049049097,-460.0,0.0002,2]
[368173458,1751049049107,-353.6165505,0.0002,2]
[368173459,1751049049116,-151.0,0.0002,2]
[368173460,1751049049126,-460.0,0.0002,2]
[368173461,1751049049135,-177.914021,0.0002,2]
[368173462,1751049049145,-460.0,0.0002,2]
[368173463,1751049049154,-460.0,0.0002,2]
[368173464,1751049049163,-460.0,0.0002,2]
[368173465,1751049049173,-827.09,0.0002,2]
[368173466,1751049049182,-151.973634,0.0002,2]
[368173467,1751049049191,-420.74,0.0002,2]
[368173468,1751049049201,-151.0,0.0002,2]
[368173469,1751049049211,-460.0,0.0002,2]
[368173470,1751049049220,-460.0,0.0002,2]
[368173471,1751049049230,-151.0,0.0002,2]
[368173472,1751049049240,-460.0,0.0002,2]
[368173473,1751049049249,-460.0,0.0002,2]
[368173474,1751049049258,-460.0,0.0002,2]
[368173475,1751049049268,-460.0,0.0002,2]
[368173476,1751049049278,-800.49,0.0002,2]
[368173477,1751049049288,-460.0,0.0002,2]
[368173478,1751049049297,-631.32,0.0002,2]
[368173479,1751049049307,-151.0,0.0002,2]
[368173480,1751049049317,-151.0,0.0002,2]
[368173481,1751049049328,-460.0,0.0002,2]
[368173482,1751049049337,-460.0,0.0002,2]
[368173483,1751049049347,-460.0,0.0002,2]
[368173484,1751049049356,-460.0,0.0002,2]
[368173485,1751049049366,-460.0,0.0002,2]
[368173486,1751049049376,-460.0,0.0002,2]
[368173487,1751049049385,-460.0,0.0002,2]
[368173488,1751049049395,-460.0,0.0002,2]
[368173489,1751049049405,-1774.934017,0.0002,2]
[368173490,1751049049414,-503.54,0.0002,2]
[368173491,1751049049424,-1774.934017,0.0002,2]
[368173492,1751049049433,-460.0,0.0002,2]
[368173493,1751049049443,-151.598614,0.0002,2]
[368173494,1751049049452,-151.0,0.0002,2]
[368173495,1751049049462,-151.0,0.0002,2]
[368173496,1751049049472,-838.64,0.0002,2]
[368173497,1751049049481,-465.89228058,0.0002,2]
[368173498,1751049049490,-460.0,0.0002,2]
[368173499,1751049049499,-460.73,0.0002,2]
[368173500,1751049049509,-460.0,0.0002,2]
[368173501,1751049049518,-460.0,0.0002,2]
[368173502,1751049049527,-584.8,0.0002,2]
[368173503,1751049049537,-151.0,0.0002,2]
[368173504,1751049049546,-344.97821184,0.0002,2]
[368173505,1751049049556,-370.639966,0.0002,2]
[368173506,1751049049565,-370.639966,0.0002,2]
[368173507,1751049049578,-460.0,0.0002,2]
[368173508,1751049049588,-460.0,0.0002,2]
[368173509,1751049049597,-4501.76,0.0002,2]
[368173510,1751049049607,-1456.06,0.0002,2]
[368173511,1751049049617,-5500.99,0.0002,2]
[368173512,1751049049625,-214.95,0.0002,2]
[368173513,1751049049634,-477.87,0.0002,2]
[368173514,1751049049644,-4785.04,0.0002,2]
[368173515,1751049049653,-460.0,0.0002,2]
[368173516,1751049049663,-490.54,0.0002,2]
[368173517,1751049049672,-2125.12,0.0002,2]
[368173518,1751049049681,-460.0,0.0002,2]
[368173519,1751049049690,-460.0,0.0002,2]
[368173520,1751049049700,-501.46,0.0002,2]
[368173521,1751049049709,-797.49,0.0002,2]
[368173522,1751049049718,-151.0,0.0002,2]
[368173523,1751049049727,-498.673964,0.0002,2]
[368173524,1751049049737,-460.0,0.0002,2]
[368173525,1751049049746,-151.0,0.0002,2]
[368173526,1751049049755,-460.0,0.0002,2]
[368173527,1751049049765,-498.673964,0.0002,2]
[368173528,1751049049774,-151.0,0.0002,2]
[368173529,1751049049783,-460.0,0.0002,2]
[368173530,1751049049793,-151.0,0.0002,2]
[368173531,1751049049887,-1935.73,0.0002,2]
[368173532,1751049049897,-460.0,0.0002,2]
[368173533,1751049049907,-469.64,0.0002,2]
[368173534,1751049049916,-2217.24,0.0002,2]
[368173535,1751049049925,-460.0,0.0002,2]
[368173536,1751049049935,-1317.79,0.0002,2]
[368173537,1751049049944,-556.515646,0.0002,2]
[368173538,1751049049954,-1624.17,0.0002,2]
[368173539,1751049049963,-556.515646,0.0002,2]
[368173540,1751049049972,-151.0,0.0002,2]
[368173541,1751049049982,-460.0,0.0002,2]
[368173542,1751049049991,-735.41,0.0002,2]
[368173543,1751049050001,-482.359798,0.0002,2]
[368173544,1751049050011,-482.359798,0.0002,2]
[368173545,1751049050020,-460.0,0.0002,2]
[368173546,1751049050030,-1413.54,0.0002,2]
[368173547,1751049050039,-460.0,0.0002,2]
[368173548,1751049050049,-1163.37,0.0002,2]
[368173549,1751049050058,-672.35,0.0002,2]
[368173550,1751049050067,-1954.79,0.0002,2]
[368173551,1751049050077,-621.02,0.0002,2]
[368173552,1751049050086,-580.24,0.0002,2]
[368173553,1751049050095,-612.49,0.0002,2]
[368173554,1751049050105,-460.0,0.0002,2]
[368173555,1751049050115,-460.0,0.0002,2]
[368173556,1751049050124,-714.41,0.0002,2]
[368173557,1751049050134,-630.53,0.0002,2]
[368173558,1751049050143,-151.0,0.0002,2]
[368173559,1751049050152,-460.0,0.0002,2]
[368173560,1751049050162,-473.41,0.0002,2]
[368173561,1751049050171,-272.77006081,0.0002,2]
[368173562,1751049050180,-460.0,0.0002,2]
[368173563,1751049050189,-460.0,0.0002,2]
[368173564,1751049050198,-797.81,0.0002,2]
[368173565,1751049050207,-849.88,0.0002,2]
[368173566,1751049050217,-2242.44,0.0002,2]
[368173567,1751049050227,-460.0,0.0002,2]
[368173568,1751049050237,-964.61,0.0002,2]
[368173569,1751049050246,-759.03,0.0002,2]
[368173570,1751049050255,-460.0,0.0002,2]
[368173571,1751049050265,-559.46,0.0002,2]
[368173572,1751049050276,-460.0,0.0002,2]
[368173573,1751049050287,-2175.15,0.0002,2]
[368173574,1751049050296,-877.07,0.0002,2]
[368173575,1751049050305,-3829.26,0.0002,2]
[368173576,1751049050315,-460.0,0.0002,2]
[368173577,1751049050324,-460.0,0.0002,2]
[368173578,1751049050335,-6238.11,0.0002,2]
[368173579,1751049050344,-460.0,0.0002,2]
[368173580,1751049050353,-460.0,0.0002,2]
[368173581,1751049050363,-460.0,0.0002,2]
[368173582,1751049050372,-502.74,0.0002,2]
[368173583,1751049050382,-1658.01,0.0002,2]
[368173584,1751049050391,-151.0,0.0002,2]
[368173585,1751049050400,-460.0,0.0002,2]
[368173586,1751049050410,-151.0,0.0002,2]
[368173587,1751049050419,-858.85,0.0002,2]
[368173588,1751049050429,-460.0,0.0002,2]
[368173589,1751049050438,-534.66,0.0002,2]
[368173590,1751049050447,-460.0,0.0002,2]
[368173591,1751049050457,-873.1,0.0002,2]
[368173592,1751049050466,-460.0,0.0002,2]
[368173593,1751049050475,-1065.72,0.0002,2]
[368173594,1751049050484,-460.0,0.0002,2]
[368173595,1751049050493,-4635.38,0.0002,2]
[368173596,1751049050503,-707.85,0.0002,2]
[368173597,1751049050512,-822.12,0.0002,2]
[368173598,1751049050522,-3704.5,0.0002,2]
[368173599,1751049050532,-1201.37,0.0002,2]
[368173600,1751049050542,-460.0,0.0002,2]
[368173601,1751049050554,-722.87,0.0002,2]
[368173602,1751049050564,-1142.58,0.0002,2]
[368173603,1751049050575,-499.48,0.0002,2]
[368173604,1751049050586,-151.0,0.0002,2]
[368173605,1751049050595,-460.0,0.0002,2]
[368173606,1751049050604,-151.0,0.0002,2]
[368173607,1751049050614,-731.11,0.0002,2]
[368173608,1751049050624,-3866.0,0.0002,2]
[368173609,1751049050633,-460.0,0.0002,2]
[368173610,1751049050643,-833.403518,0.0002,2]
[368173611,1751049050656,-1339.53,0.0002,2]
[368173612,1751049050666,-833.403518,0.0002,2]
[368173613,1751049050676,-449.92250371,0.00020021,2]
[368173614,1751049050685,-153.0,0.00020027,2]
[368173615,1751049050694,-153.0,0.00020027,2]
[368173616,1751049050703,-1276.95252504,0.0002007,2]
[368173617,1751049050712,-151.0,0.000201,3]
[368173618,1751049050721,-151.0,0.00020107,2]
[368173619,1751049050730,-366.0085437,0.00020219,2]
[368173620,1751049050740,-500.0,0.0002027,2]
[368173621,1751049050749,-500.0,0.0002027,2]
[368173622,1751049050758,-460.0,0.00020273,2]
[368173623,1751049050767,-460.0,0.00020273,2]
[368173624,1751049050776,-467.87,0.00020273,2]
[368173625,1751049050784,-460.0,0.00020273,2]
[368173626,1751049050793,-151.093005,0.00020273,2]
[368173627,1751049050802,-460.0,0.00020273,2]
[368173628,1751049050811,-151.0,0.00020273,2]
[368173629,1751049050820,-151.0,0.00020273,2]
[368173630,1751049050830,-151.0,0.00020273,2]
[368173631,1751049050839,-460.0,0.00020273,2]
[368173632,1751049050848,-460.0,0.00020273,2]
[368173633,1751049050857,-151.0,0.00020273,2]
[368173634,1751049050866,-151.0,0.00020273,2]
[368173635,1751049050875,-151.0,0.00020273,2]
[368173636,1751049050884,-460.0,0.00020273,2]
[368173637,1751049050893,-460.0,0.00020273,2]
[368173638,1751049050902,-151.0,0.00020273,2]
[368173639,1751049050911,-151.0,0.00020273,2]
[368173640,1751049050919,-151.0,0.00020273,2]
[368173641,1751049050929,-200.42665,0.00020273,2]
[368173642,1751049050938,-157.10844,0.00020273,2]
[368173643,1751049050947,-151.0,0.00020273,2]
[368173644,1751049050956,-151.0,0.00020273,2]
[368173645,1751049050965,-151.0,0.00020273,2]
[368173646,1751049050974,-460.0,0.00020273,2]
[368173647,1751049050983,-460.0,0.00020273,2]
[368173648,1751049050992,-297.134412,0.00020273,2]
[368173649,1751049051001,-151.0,0.00020273,2]
[368173650,1751049051010,-297.134412,0.00020273,2]
[368173651,1751049051019,-460.0,0.00020273,2]
[368173652,1751049051029,-460.0,0.00020273,2]
[368173653,1751049051038,-460.0,0.00020273,2]
[368173654,1751049051047,-368.31934,0.00020273,2]
[368173655,1751049051057,-2302.532705,0.00020273,2]
[368173656,1751049051066,-460.0,0.00020273,2]
[368173657,1751049051075,-524.84325876,0.00020273,2]
[368173658,1751049051085,-827.09,0.00020273,2]
[368173659,1751049051094,-192.55804,0.00020273,2]
[368173660,1751049051103,-460.0,0.00020273,2]
[368173661,1751049051113,-151.0,0.00020273,2]
[368173662,1751049051122,-513.84,0.00020273,2]
[368173663,1751049051132,-151.0,0.00020273,2]
[368173664,1751049051143,-151.0,0.00020273,2]
[368173665,1751049051153,-460.0,0.00020273,2]
[368173666,1751049051162,-460.0,0.00020273,2]
[368173667,1751049051171,-460.0,0.00020273,2]
[368173668,1751049051180,-800.49,0.00020273,2]
[368173669,1751049051190,-460.0,0.00020273,2]
[368173670,1751049051199,-631.32,0.00020273,2]
[368173671,1751049051208,-151.0,0.00020273,2]
[368173672,1751049051217,-151.0,0.00020273,2]
[368173673,1751049051226,-734.224282,0.00020273,2]
[368173674,1751049051236,-734.224282,0.00020273,2]
[368173675,1751049051245,-460.0,0.00020273,2]
[368173676,1751049051254,-460.0,0.00020273,2]
[368173677,1751049051264,-460.0,0.00020273,2]
[368173678,1751049051274,-460.0,0.00020273,2]
[368173679,1751049051284,-460.0,0.00020273,2]
[368173680,1751049051294,-460.0,0.00020273,2]
[368173681,1751049051303,-1774.934017,0.00020273,2]
[368173682,1751049051313,-1774.934017,0.00020273,2]
[368173683,1751049051322,-151.0,0.00020273,2]
[368173684,1751049051332,-487.79,0.00020273,2]
[368173685,1751049051341,-151.0,0.00020273,2]
[368173686,1751049051351,-151.0,0.00020273,2]
[368173687,1751049051360,-838.64,0.00020273,2]
[368173688,1751049051370,-460.0,0.00020273,2]
[368173689,1751049051379,-460.73,0.00020273,2]
[368173690,1751049051389,-460.0,0.00020273,2]
[368173691,1751049051399,-460.0,0.00020273,2]
[368173692,1751049051408,-151.0,0.00020273,2]
[368173693,1751049051417,-151.0,0.00020273,2]
[368173694,1751049051426,-151.0,0.00020273,2]
[368173695,1751049051435,-370.639966,0.00020273,2]
[368173696,1751049051524,-151.0,0.00020273,2]
[368173697,1751049051535,-370.639966,0.00020273,2]
[368173698,1751049051545,-460.0,0.00020273,2]
[368173699,1751049051554,-576.205166,0.00020273,2]
[368173700,1751049051564,-4501.76,0.00020273,2]
[368173701,1751049051575,-576.205166,0.00020273,2]
[368173702,1751049051587,-1456.06,0.00020273,2]
[368173703,1751049051597,-5500.99,0.00020273,2]
[368173704,1751049051607,-477.87,0.00020273,2]
[368173705,1751049051617,-4785.04,0.00020273,2]
[368173706,1751049051627,-460.0,0.00020273,2]
[368173707,1751049051636,-490.54,0.00020273,2]
[368173708,1751049051646,-2125.12,0.00020273,2]
[368173709,1751049051655,-460.0,0.00020273,2]
[368173710,1751049051666,-460.0,0.00020273,2]
[368173711,1751049051676,-501.46,0.00020273,2]
[368173712,1751049051685,-797.49,0.00020273,2]
[368173713,1751049051694,-151.0,0.00020273,2]
[368173714,1751049051704,-498.673964,0.00020273,2]
[368173715,1751049051713,-260.329697,0.00020273,2]
[368173716,1751049051722,-362.32954908,0.00020273,2]
[368173717,1751049051732,-498.673964,0.00020273,2]
[368173718,1751049051742,-151.0,0.00020273,2]
[368173719,1751049051751,-460.0,0.00020273,2]
[368173720,1751049051760,-251.347677,0.00020273,2]
[368173721,1751049051769,-251.347677,0.00020273,2]
[368173722,1751049051778,-1935.73,0.00020273,2]
[368173723,1751049051788,-460.0,0.00020273,2]
[368173724,1751049051797,-469.64,0.00020273,2]
[368173725,1751049051806,-2217.24,0.00020273,2]
[368173726,1751049051815,-460.0,0.00020273,2]
[368173727,1751049051825,-1317.79,0.00020273,2]
[368173728,1751049051835,-219.51,0.00020273,2]
[368173729,1751049051844,-556.515646,0.00020273,2]
[368173730,1751049051854,-1624.17,0.00020273,2]
[368173731,1751049051863,-556.515646,0.00020273,2]
[368173732,1751049051873,-151.0,0.00020273,2]
[368173733,1751049051883,-460.0,0.00020273,2]
[368173734,1751049051892,-735.41,0.00020273,2]
[368173735,1751049051902,-482.359798,0.00020273,2]
[368173736,1751049051912,-482.359798,0.00020273,2]
[368173737,1751049051921,-460.0,0.00020273,2]
[368173738,1751049051931,-1413.54,0.00020273,2]
[368173739,1751049051941,-460.0,0.00020273,2]
[368173740,1751049051951,-1163.37,0.00020273,2]
[368173741,1751049051960,-672.35,0.00020273,2]
[368173742,1751049051970,-1954.79,0.00020273,2]
[368173743,1751049051979,-621.02,0.00020273,2]
[368173744,1751049051989,-580.24,0.00020273,2]
[368173745,1751049051998,-612.49,0.00020273,2]
[368173746,1751049052007,-460.0,0.00020273,2]
[368173747,1751049052017,-460.0,0.00020273,2]
[368173748,1751049052026,-714.41,0.00020273,2]
[368173749,1751049052035,-630.53,0.00020273,2]
[368173750,1751049052045,-151.0,0.00020273,2]
[368173751,1751049052055,-460.0,0.00020273,2]
[368173752,1751049052064,-473.41,0.00020273,2]
[368173753,1751049052073,-460.0,0.00020273,2]
[368173754,1751049052083,-460.0,0.00020273,2]
[368173755,1751049052091,-797.81,0.00020273,2]
[368173756,1751049052101,-849.88,0.00020273,2]
[368173757,1751049052110,-2242.44,0.00020273,2]
[368173758,1751049052119,-460.0,0.00020273,2]
[368173759,1751049052129,-964.61,0.00020273,2]
[368173760,1751049052138,-759.03,0.00020273,2]
[368173761,1751049052147,-338.774376,0.00020273,2]
[368173762,1751049052156,-559.46,0.00020273,2]
[368173763,1751049052166,-2175.15,0.00020273,2]
[368173764,1751049052176,-877.07,0.00020273,2]
[368173765,1751049052186,-3829.26,0.00020273,2]
[368173766,1751049052195,-460.0,0.00020273,2]
[368173767,1751049052206,-460.0,0.00020273,2]
[368173768,1751049052215,-6238.11,0.00020273,2]
[368173769,1751049052225,-460.0,0.00020273,2]
[368173770,1751049052234,-460.0,0.00020273,2]
[368173771,1751049052247,-460.0,0.00020273,2]
[368173772,1751049052265,-502.74,0.00020273,2]
[368173773,1751049052279,-1658.01,0.00020273,2]
[368173774,1751049052296,-151.0,0.00020273,2]
[368173775,1751049052312,-460.0,0.00020273,2]
[368173776,1751049052328,-151.0,0.00020273,2]
[368173777,1751049052342,-858.85,0.00020273,2]
[368173778,1751049052354,-534.66,0.00020273,2]
[368173779,1751049052371,-460.0,0.00020273,2]
[368173780,1751049052385,-873.1,0.00020273,2]
[368173781,1751049052401,-460.0,0.00020273,2]
[368173782,1751049052416,-1065.72,0.00020273,2]
[368173783,1751049052431,-460.0,0.00020273,2]
[368173784,1751049052447,-4635.38,0.00020273,2]
[368173785,1751049052462,-707.85,0.00020273,2]
[368173786,1751049052477,-822.12,0.00020273,2]
[368173787,1751049052493,-3704.5,0.00020273,2]
[368173788,1751049052507,-1201.37,0.00020273,2]
[368173789,1751049052519,-722.87,0.00020273,2]
[368173790,1751049052531,-1142.58,0.00020273,2]
[368173791,1751049052547,-499.48,0.00020273,2]
[368173792,1751049052560,-460.0,0.00020273,2]
[368173793,1751049052571,-151.0,0.00020273,2]
[368173794,1751049052587,-201.32043884,0.00020273,2]
[368173795,1751049052599,-176.797928,0.00020273,2]
[368173796,1751049052611,-731.11,0.00020273,2]
[368173797,1751049052625,-3866.0,0.00020273,2]
[368173798,1751049052638,-460.0,0.00020273,2]
[368173799,1751049052651,-833.403518,0.00020273,2]
[368173800,1751049052664,-1339.53,0.00020273,2]
[368173801,1751049052677,-500.0,0.00020274,2]
[368173802,1751049052690,-151.0,0.000203,4]
[368173803,1751049052702,-1000.0,0.0002034,2]
[368173804,1751049052714,-151.0,0.000204,3]
[368173805,1751049052727,-151.0,0.000204,4]
[368173806,1751049052741,-1276.95252504,0.000204,2]
[368173807,1751049052753,-381.0,0.00020426,2]
[368173808,1751049052765,-381.0,0.00020445,2]
[368173809,1751049052778,-160.844011,0.00020448,4]
[368173810,1751049052791,-473.11563997,0.00020473,2]
[368173811,1751049052803,-500.0,0.00020473,2]
[368173812,1751049052815,-500.0,0.00020473,2]
[368173813,1751049052828,-500.0,0.00020473,2]
[368173814,1751049052840,-153.0,0.00020493,2]
[368173815,1751049052852,-153.0,0.00020493,2]
[368173816,1751049052864,-153.0,0.00020493,2]
[368173817,1751049052876,-153.0,0.00020493,2]
[368173818,1751049052888,-153.0,0.00020493,2]
[368173819,1751049052900,-153.0,0.00020493,2]
[368173820,1751049052916,-153.0,0.00020493,2]
[368173821,1751049052931,-153.0,0.00020493,2]
[368173822,1751049052948,-153.0,0.00020493,2]
[368173823,1751049052962,-153.0,0.00020493,2]
[368173824,1751049052976,-153.0,0.00020493,2]
[368173825,1751049052989,-153.0,0.00020493,2]
[368173826,1751049053002,-162882.33509662,0.000205,3]
[368173827,1751049053353,-114102.40233779,0.000205,3]
[368173828,1751049053366,-710.72272367,0.000205,3]
[368173829,1751049053375,-151.0,0.000205,2]
[368173830,1751049053384,-262.65229,0.000205,2]
[368173831,1751049053394,-151.0,0.000205,2]
[368173832,1751049053404,-151.0,0.000205,2]
[368173833,1751049053413,-368.31934,0.000205,2]
[368173834,1751049053423,-2302.532705,0.000205,2]
[368173835,1751049053432,-192.55804,0.000205,2]
[368173836,1751049053442,-151.0,0.000205,2]
[368173837,1751049053451,-151.0,0.000205,2]
[368173838,1751049053460,-151.0,0.000205,2]
[368173839,1751049053470,-151.0,0.000205,2]
[368173840,1751049053479,-229.51402,0.000205,2]
[368173841,1751049053488,-151.0,0.000205,2]
[368173842,1751049053497,-151.0,0.000205,2]
[368173843,1751049053507,-734.224282,0.000205,2]
[368173844,1751049053516,-734.224282,0.000205,2]
[368173845,1751049053526,-1774.934017,0.000205,2]
[368173846,1751049053535,-1774.934017,0.000205,2]
[368173847,1751049053545,-151.0,0.000205,2]
[368173848,1751049053554,-151.0,0.000205,2]
[368173849,1751049053564,-151.0,0.000205,2]
[368173850,1751049053575,-153.403596,0.000205,2]
[368173851,1751049053586,-151.0,0.000205,2]
[368173852,1751049053595,-151.0,0.000205,2]
[368173853,1751049053604,-370.639966,0.000205,2]